Cogmind - Beta 12 @@@ ROGUE MODE // 2023.06.01 @ 22:53:41 Player: Mr Goldstein Result: Self-destructed Performance ------------- Evolutions (5) 2500 Regions Visited (12) 2400 Robots Destroyed (15) 75 Value Destroyed (294) 294 Prototype IDs (218) 4360 Alien Tech Used (0) 0 Bonus (3800) 3800 TOTAL SCORE: 13429 Bonus ------- Entered DSFs 500 Met Data Miner 300 Used Data Conduit 3000 Cogmind --------- Core Integrity 811/1000 Matter 225/300 Energy 100/100 System Corruption 0% Temperature Cool (0) Movement Core (50) Location -5/Factory Parts ------- > --- POWER (1) -------- (None) > --- PROPULSION (7) --- Makeshift Hover Unit > --- UTILITY (7) ------ Improved Signal Interpreter Advanced Signal Interpreter System Shield > --- WEAPON (2) ------- (None) > --- INVENTORY (5) ---- Ghost Barrier Quantum Router Pulse Rifle Peak State ------------ > --- POWER ------------ Nuclear Core > --- PROPULSION ------- Makeshift Hover Unit > --- UTILITY ---------- Small Storage Unit Advanced Sensor Array Improved Signal Interpreter Advanced Signal Interpreter System Mapper Deep Network Scanner System Shield > --- WEAPON ----------- (None) > --- INVENTORY -------- Ghost Barrier Quantum Router Pulse Rifle [Rating: 46] Favorites ----------- Power Nuclear Core Power Core Nuclear Core Propulsion VTOL Module Hover Unit Gravmag System Flight Unit VTOL Module Utility Small Storage Unit Device Advanced Sensor Array Storage Small Storage Unit Processor Improved Signal Interpreter Hackware System Shield Weapon Grenade Launcher Launcher Grenade Launcher Slashing Weapon Makeshift Axe Build | -11 -10 -10 -9 -8 -7 -7 -6 -6 -6 -6 -5 -5 ------- Run | Jun Mat Min Mat Mat Fac DSF Fac Low Low Dat Pro Fac Slots Evolved 10 | . . . 2 2 2 . 2 . . . . 2 Power . | . . . . . . . . . . . . . Propulsion 5 | . . . 1 1 1 . 1 . . . . 1 Utility 5 | . . . 1 1 1 . 1 . . . . 1 Weapon . | . . . . . . . . . . . . . Parts Attached 35 | . . 1 4 1 1 5 5 6 2 3 2 5 Power 3 | . . . . . . . 1 1 . . 1 . Engine . | . . . . . . . . . . . . . Core 3 | . . . . . . . 1 1 . . 1 . Reactor . | . . . . . . . . . . . . . Propulsion 15 | . . . 1 . . 5 3 2 . 2 1 1 Treads . | . . . . . . . . . . . . . Leg . | . . . . . . . . . . . . . Wheel . | . . . . . . . . . . . . . Hover 9 | . . . 1 . . 5 . . . 2 1 . Flight 6 | . . . . . . . 3 2 . . . 1 Utility 8 | . . . . . 1 . . 1 2 . . 4 Device 1 | . . . . . . . . . 1 . . . Storage 1 | . . . . . . . . 1 . . . . Processor 2 | . . . . . . . . . . . . 2 Hackware 4 | . . . . . 1 . . . 1 . . 2 Protection . | . . . . . . . . . . . . . Artifact . | . . . . . . . . . . . . . Weapon 9 | . . 1 3 1 . . 1 2 . 1 . . Energy Gun . | . . . . . . . . . . . . . Energy Cannon . | . . . . . . . . . . . . . Ballistic Gun . | . . . . . . . . . . . . . Ballistic Cannon . | . . . . . . . . . . . . . Launcher 8 | . . 1 3 1 . . 1 2 . . . . Special Weapon . | . . . . . . . . . . . . . Impact Weapon . | . . . . . . . . . . . . . Slashing Weapon 1 | . . . . . . . . . . 1 . . Piercing Weapon . | . . . . . . . . . . . . . Special Melee Weapon . | . . . . . . . . . . . . . Unidentified Prototypes 3 | . . . 1 . . . . . . . . 2 Parts Lost 20 | . . . 1 1 . 5 . 2 . 4 1 6 Power 1 | . . . . . . . . 1 . . . . Propulsion 12 | . . . . . . 4 . . . 4 1 3 Utility 4 | . . . . . . 1 . . . . . 3 Weapon 3 | . . . 1 1 . . . 1 . . . . Highest Loss Streak 6 | . . . 1 1 . 5 . 2 . 4 1 6 To Critical Strikes . | . . . . . . . . . . . . . Average Slot Usage (%) 26 | . . 2 3 . 5 25 17 43 52 55 52 44 Core 2 | . . . . . . . 3 5 6 4 6 3 Hover 4 | . . . . . . 19 . . . 3 19 9 Flight 10 | . . . . . . . 13 31 33 24 6 3 Device 1 | . . . . . . . . . . 6 6 3 Storage 2 | . . . . . . . . 2 6 6 6 3 Hackware 2 | . . . . . 5 5 . . 4 6 6 6 Launcher 1 | . . 2 3 . . . . 3 . . . . Naked Turns 316 | . 45 42 91 99 8 3 28 . . . . . Heaviest Build 16 | . . 3 3 3 . . 5 13 13 16 13 13 Greatest Support 40 | 3 3 3 3 3 3 40 12 20 20 20 30 21 Greatest Overweight (x) . | . . . . . . . . . . . . . Average Overweight (x) . | . . . . . . . . . . . . . Largest Inventory Capacity 8 | 5 5 5 5 5 5 5 5 8 8 8 8 8 Average Capacity 6 | 5 5 5 5 5 5 5 5 6 8 8 8 7 Most Carried 8 | 1 4 4 3 3 3 5 5 5 5 8 6 6 Average Carried 3 | . 2 3 2 2 2 3 4 3 4 5 5 4 Final Capacity 8 | 5 5 5 5 5 5 5 5 8 8 8 8 5 Final Carried 6 | 1 4 3 3 2 3 5 5 3 5 6 5 3 Class Distribution -------------------- 69% | Mutant 30% | Scavenger-Sprinter Dominant Class ---------------- Mutant | -10/Materials Mutant | -10/Mines Mutant | -9/Materials Mutant | -8/Materials Mutant | -7/Factory Mutant | -7/DSF Scavenger-Sprinter | -6/Factory Scavenger-Sprinter | -6/Lower Caves Scavenger-Sprinter | -6/Lower Caves Scavenger-Sprinter | -6/Data Miner Mutant | -5/Proximity Caves Mutant | -5/Factory Resources | -11 -10 -10 -9 -8 -7 -7 -6 -6 -6 -6 -5 -5 ----------- Run | Jun Mat Min Mat Mat Fac DSF Fac Low Low Dat Pro Fac Matter Collected 490 | 200 . 10 55 . 30 . 13 46 57 30 49 . Remotely . | . . . . . . . . . . . . . Salvage Created 199 | . . 16 12 . . . 61 80 . 30 . . Parts 27 | . . 6 1 . . . 7 9 . 4 . . Haulers Intercepted . | . . . . . . . . . . . . . Recyclers Shooed . | . . . . . . . . . . . . . Parts Field Recycled . | . . . . . . . . . . . . . Retrieved Matter . | . . . . . . . . . . . . . Parts Self-Destructed 8 | . . . . . . . . 8 . . . . Prevented . | . . . . . . . . . . . . . Kills | -11 -10 -10 -9 -8 -7 -7 -6 -6 -6 -6 -5 -5 ------- Run | Jun Mat Min Mat Mat Fac DSF Fac Low Low Dat Pro Fac Combat Hostiles Destroyed 14 | . . 3 2 . . . 4 5 . . . . AOE 14 | . . 3 2 . . . 4 5 . . . . Classes Destroyed 1 | . . 1 . . . . . . . . . . Swarmer 14 | . . 3 2 . . . 4 5 . . . . Best Kill Streak 4 | . . 3 2 . . . 4 3 . 1 . . Combat Bots Only 4 | . . 3 2 . . . 4 3 . . . . Max Kills in Single Turn 3 | . . 3 1 . . . 2 2 . 1 . . Gunslinging . | . . . . . . . . . . . . . Exploded 3 | . . 3 1 . . . 2 2 . . . . Melee . | . . . . . . . . . . . . . Uniques/NPCs Destroyed 1 | . . . . . . . . . . 1 . . Data Miner (-6/Data Miner) Combat | -11 -10 -10 -9 -8 -7 -7 -6 -6 -6 -6 -5 -5 -------- Run | Jun Mat Min Mat Mat Fac DSF Fac Low Low Dat Pro Fac Damage Taken 2420 | . 46 10 470 354 22 380 127 117 31 374 38 451 Core 1536 | . 46 10 378 315 22 207 77 53 31 190 18 189 Absorbed by Shields . | . . . . . . . . . . . . . Core Remaining (%) 57 | 100 . 77 5 42 . 67 . . . . 56 . Volleys Fired 14 | . . 1 4 1 . . 2 6 . . . . Largest 1 | . . 1 1 1 . . 1 1 . . . . Hottest 30 | . . 30 30 30 . . 30 30 . . . . Shots Fired 14 | . . 1 4 1 . . 2 6 . . . . Gun . | . . . . . . . . . . . . . Cannon . | . . . . . . . . . . . . . Launcher 14 | . . 1 4 1 . . 2 6 . . . . Special . | . . . . . . . . . . . . . Kinetic . | . . . . . . . . . . . . . Thermal . | . . . . . . . . . . . . . Explosive 14 | . . 1 4 1 . . 2 6 . . . . Electromagnetic . | . . . . . . . . . . . . . Robot Hit Streak . | . . . . . . . . . . . . . Robot Miss Streak . | . . . . . . . . . . . . . Penetration Max . | . . . . . . . . . . . . . Secondary Targets . | . . . . . . . . . . . . . Shots Hit Robots 1 | . . . . . . . . . . 1 . . Core Hits 21 | . . 3 3 1 . . 5 9 . . . . Critical Kills . | . . . . . . . . . . . . . Critical Parts Destroyed . | . . . . . . . . . . . . . Critical Strikes . | . . . . . . . . . . . . . Melee Attacks 1 | . . . . . . . . . . 1 . . Impact . | . . . . . . . . . . . . . Slashing 1 | . . . . . . . . . . 1 . . Piercing . | . . . . . . . . . . . . . Sneak Attacks 1 | . . . . . . . . . . 1 . . Combat Hostiles . | . . . . . . . . . . . . . Follow-up Attacks . | . . . . . . . . . . . . . Damage Inflicted 1003 | . . 112 207 31 . 2 242 295 . 100 . 14 Guns . | . . . . . . . . . . . . . Cannons . | . . . . . . . . . . . . . Explosions 826 | . . 112 175 2 . . 242 295 . . . . Melee 100 | . . . . . . . . . . 100 . . Ramming 77 | . . . 32 29 . 2 . . . . . 14 Kinetic . | . . . . . . . . . . . . . Thermal . | . . . . . . . . . . . . . Explosive 826 | . . 112 175 2 . . 242 295 . . . . Electromagnetic . | . . . . . . . . . . . . . Impact . | . . . . . . . . . . . . . Slashing 100 | . . . . . . . . . . 100 . . Piercing . | . . . . . . . . . . . . . Highest Corruption 2 | . . . . . . 2 1 1 1 1 1 . Average Corruption 1 | . . . . . . 2 1 1 1 1 1 . Corruption Purged . | . . . . . . . . . . . . . Corruption Blocked . | . . . . . . . . . . . . . Effects 3 | . . . . . . . 1 1 . . 1 . Message Errors 1 | . . . . . . . . . . . 1 . Data Loss (minor) 1 | . . . . . . . . 1 . . . . Alerts 1 | . . . . . . . 1 . . . . . Overload Shots . | . . . . . . . . . . . . . Overflow Damage 70 | . . . 30 . . . . . . 40 . . Projectiles . | . . . . . . . . . . . . . Explosions 30 | . . . 30 . . . . . . . . . Melee 40 | . . . . . . . . . . 40 . . Knockbacks 1 | . . . . 1 . . . . . . . . Impact 1 | . . . . 1 . . . . . . . . Kinetic . | . . . . . . . . . . . . . Secondary . | . . . . . . . . . . . . . Self-Inflicted Damage 55 | . . . 16 23 . 1 9 . . . . 6 Shots 2 | . . . . 1 . . 1 . . . . . Rammed 13 | . . . 5 4 . 1 . . . . . 3 Targets Rammed 13 | . . . 5 4 . 1 . . . . . 3 Kicked . | . . . . . . . . . . . . . Crushed . | . . . . . . . . . . . . . Highest Temperature 413 | . . . 413 . . . . 13 8 1 . . Average Temperature 64 | . . . 210 . . . . 5 1 1 . . Received Heat Transfer 381 | . 27 . 63 207 . 18 9 27 12 . 18 . Siege Activations . | . . . . . . . . . . . . . Robots Corrupted . | . . . . . . . . . . . . . Combat Hostiles . | . . . . . . . . . . . . . Parts Fried . | . . . . . . . . . . . . . Impact Corruptions . | . . . . . . . . . . . . . Robots Melted . | . . . . . . . . . . . . . Combat Hostiles . | . . . . . . . . . . . . . Parts Melted . | . . . . . . . . . . . . . Heat Transferred . | . . . . . . . . . . . . . Parts Sabotaged . | . . . . . . . . . . . . . Parts Stolen . | . . . . . . . . . . . . . Parts Stripped . | . . . . . . . . . . . . . Power Chain Reactions . | . . . . . . . . . . . . . Missiles Intercepted . | . . . . . . . . . . . . . Alert | -11 -10 -10 -9 -8 -7 -7 -6 -6 -6 -6 -5 -5 ------- Run | Jun Mat Min Mat Mat Fac DSF Fac Low Low Dat Pro Fac Peak Influence 355 | . . 77 355 254 110 92 221 . . . . . Initial 149 | . . . 29 149 110 77 21 . . . . . Average 88 | . . 19 106 204 110 75 104 . . . . . Maximum Alert Level 1 | . . . 1 1 . . 1 . . . . . Low Security (%) 84 | 100 100 100 78 36 100 100 93 . . . . 100 Level 1 15 | . . . 21 63 . . 6 . . . . . Level 2 . | . . . . . . . . . . . . . Level 3 . | . . . . . . . . . . . . . Level 4 . | . . . . . . . . . . . . . Level 5 . | . . . . . . . . . . . . . High Security . | . . . . . . . . . . . . . Max Security . | . . . . . . . . . . . . . Squads Dispatched 6 | . . . 2 1 . 1 2 . . . . . Investigation 3 | . . . . 1 . . 2 . . . . . Extermination . | . . . . . . . . . . . . . Reinforcement 3 | . . . 2 . . 1 . . . . . . Assault . | . . . . . . . . . . . . . Garrison . | . . . . . . . . . . . . . Intercept . | . . . . . . . . . . . . . Searches Triggered . | . . . . . . . . . . . . . Construction Impeded 1 | . . . 1 . . . . . . . . . Haulers Reinforced . | . . . . . . . . . . . . . Active Scanning Responses . | . . . . . . . . . . . . . Cargo Convoy Interrupts . | . . . . . . . . . . . . . Stealth | -11 -10 -10 -9 -8 -7 -7 -6 -6 -6 -6 -5 -5 --------- Run | Jun Mat Min Mat Mat Fac DSF Fac Low Low Dat Pro Fac Distress Signals 3 | . . . . 1 . . . . . . . 2 Communications Jammed . | . . . . . . . . . . . . . Distress Signals . | . . . . . . . . . . . . . Times Spotted 91 | . 2 3 20 17 . 6 10 19 1 4 3 6 Peak Tracking Total 15 | . 2 3 12 15 . 6 4 12 1 4 3 6 Tactical Retreats 7 | . . . 3 . . 1 1 2 . . . . Traps | -11 -10 -10 -9 -8 -7 -7 -6 -6 -6 -6 -5 -5 ------- Run | Jun Mat Min Mat Mat Fac DSF Fac Low Low Dat Pro Fac Traps Triggered 3 | . . . 1 . 1 1 . . . . . . Indirectly . | . . . . . . . . . . . . . Trap Hack Attempts . | . . . . . . . . . . . . . Triggered . | . . . . . . . . . . . . . Disarmed . | . . . . . . . . . . . . . Reprogrammed . | . . . . . . . . . . . . . Reused . | . . . . . . . . . . . . . Traps Extracted . | . . . . . . . . . . . . . Installed . | . . . . . . . . . . . . . Triggered . | . . . . . . . . . . . . . Machines | -11 -10 -10 -9 -8 -7 -7 -6 -6 -6 -6 -5 -5 ---------- Run | Jun Mat Min Mat Mat Fac DSF Fac Low Low Dat Pro Fac Machines Disabled . | . . . . . . . . . . . . . Max in Single Turn . | . . . . . . . . . . . . . Machines Repaired . | . . . . . . . . . . . . . Machines Sabotaged . | . . . . . . . . . . . . . Overloaded Fab Kills . | . . . . . . . . . . . . . Hacking | -11 -10 -10 -9 -8 -7 -7 -6 -6 -6 -6 -5 -5 --------- Run | Jun Mat Min Mat Mat Fac DSF Fac Low Low Dat Pro Fac Machines Accessed 14 | . 3 . . 2 1 . 4 . 1 3 . . Terminals 7 | . 2 . . 1 1 . 3 . . . . . Fabricators . | . . . . . . . . . . . . . Repair Stations . | . . . . . . . . . . . . . Recycling Units 3 | . 1 . . 1 . . 1 . . . . . Scanalyzers . | . . . . . . . . . . . . . Garrison Access . | . . . . . . . . . . . . . Total Hacks 42 | . 8 . . 2 1 . 9 . 1 21 . . Successful 29 | . 1 . . 2 1 . 3 . 1 21 . . Failed 13 | . 7 . . . . . 6 . . . . . Catastrophic 6 | . 4 . . . . . 2 . . . . . Database Lockouts . | . . . . . . . . . . . . . Manual 13 | . 8 . . 2 . . 3 . . . . . Terminals 13 | . 5 . . 1 1 . 6 . . . . . Fabricators . | . . . . . . . . . . . . . Repair Stations . | . . . . . . . . . . . . . Recycling Units 7 | . 3 . . 1 . . 3 . . . . . Scanalyzers . | . . . . . . . . . . . . . Garrison Access . | . . . . . . . . . . . . . Terminal Hacks 28 | . 1 . . 1 1 . 3 . 1 21 . . Record 2 | . . . . . . . . . . 2 . . Part Schematic 12 | . . . . . . . . . . 12 . . Robot Schematic 4 | . . . . . . . . . . 4 . . Prototype ID Bank 3 | . . . . . . . . . . 3 . . Open Door 1 | . . . . . . . . . 1 . . . Open DSF 1 | . . . . . 1 . . . . . . . Level Access Points 1 | . . . . 1 . . . . . . . . Branch Access Points 2 | . 1 . . . . . 1 . . . . . Emergency Access Points 1 | . . . . . . . 1 . . . . . Registered Components 1 | . . . . . . . 1 . . . . . Fabricator Hacks . | . . . . . . . . . . . . . Repair Station Hacks . | . . . . . . . . . . . . . Recycling Unit Hacks . | . . . . . . . . . . . . . Scanalyzer . | . . . . . . . . . . . . . Garrison Access Hacks . | . . . . . . . . . . . . . Unauthorized Hacks 1 | . . . . 1 . . . . . . . . Terminals . | . . . . . . . . . . . . . Fabricators . | . . . . . . . . . . . . . Repair Stations . | . . . . . . . . . . . . . Recycling Units 1 | . . . . 1 . . . . . . . . Tunnel 1 | . . . . 1 . . . . . . . . Scanalyzers . | . . . . . . . . . . . . . Garrison Access . | . . . . . . . . . . . . . Data Cores Recovered . | . . . . . . . . . . . . . Used . | . . . . . . . . . . . . . Hacking Detections 8 | . 3 . . . 1 . 4 . . . . . Full Trace Events 4 | . 2 . . . . . 2 . . . . . Feedback Events 1 | . . . . . . . 1 . . . . . Corruption 1 | . . . . . . . 1 . . . . . Feedback Blocked . | . . . . . . . . . . . . . Robot Schematics Acquired 4 | . . . . . . . . . . 4 . . Robots Built . | . . . . . . . . . . . . . Authchips . | . . . . . . . . . . . . . Time . | . . . . . . . . . . . . . Total Robot Build Rating . | . . . . . . . . . . . . . Part Schematics Acquired 12 | . . . . . . . . . . 12 . . Parts Built . | . . . . . . . . . . . . . Authchips . | . . . . . . . . . . . . . Time . | . . . . . . . . . . . . . Total Part Build Rating . | . . . . . . . . . . . . . Parts Repaired . | . . . . . . . . . . . . . Time . | . . . . . . . . . . . . . Parts Recycled . | . . . . . . . . . . . . . Recycled Matter . | . . . . . . . . . . . . . Retrieved Matter . | . . . . . . . . . . . . . Retrieved Components . | . . . . . . . . . . . . . Parts Scanalyzed . | . . . . . . . . . . . . . Part Schematics Acquired . | . . . . . . . . . . . . . Parts Damaged . | . . . . . . . . . . . . . Bothacking | -11 -10 -10 -9 -8 -7 -7 -6 -6 -6 -6 -5 -5 ------------ Run | Jun Mat Min Mat Mat Fac DSF Fac Low Low Dat Pro Fac Used RIF Installer . | . . . . . . . . . . . . . Robots Hacked . | . . . . . . . . . . . . . Non-combat . | . . . . . . . . . . . . . Combat . | . . . . . . . . . . . . . Robot Hacks Applied . | . . . . . . . . . . . . . Relay Couplers Released . | . . . . . . . . . . . . . Fabnet Peak Effective % . | . . . . . . . . . . . . . Robots Rewired . | . . . . . . . . . . . . . Allies Hacked . | . . . . . . . . . . . . . Hacks Repelled . | . . . . . . . . . . . . . Allies | -11 -10 -10 -9 -8 -7 -7 -6 -6 -6 -6 -5 -5 -------- Run | Jun Mat Min Mat Mat Fac DSF Fac Low Low Dat Pro Fac Total Allies . | . . . . . . . . . . . . . Largest Group . | . . . . . . . . . . . . . Highest-Rated Group . | . . . . . . . . . . . . . Highest-Rated Ally . | . . . . . . . . . . . . . Total Orders . | . . . . . . . . . . . . . Ally Attacks . | . . . . . . . . . . . . . Total Damage . | . . . . . . . . . . . . . Kills . | . . . . . . . . . . . . . Allies Corrupted . | . . . . . . . . . . . . . Allies Melted . | . . . . . . . . . . . . . Intel | -11 -10 -10 -9 -8 -7 -7 -6 -6 -6 -6 -5 -5 ------- Run | Jun Mat Min Mat Mat Fac DSF Fac Low Low Dat Pro Fac Robot Analysis Total 131 | . . . . . . . . . . 131 . . Derelict Logs Recovered 5 | . . . . . . . . 2 1 . 2 . Drone Launches . | . . . . . . . . . . . . . Drone Recoveries . | . . . . . . . . . . . . . Exploration | -11 -10 -10 -9 -8 -7 -7 -6 -6 -6 -6 -5 -5 ------------- Run | Jun Mat Min Mat Mat Fac DSF Fac Low Low Dat Pro Fac Turns Passed 1032 | 15 45 58 125 108 61 48 95 153 67 34 137 86 Spaces Moved 2268 | 28 83 110 210 201 117 66 247 472 270 94 243 127 Core 894 | 28 83 110 210 201 117 61 54 . . . . 30 Treads . | . . . . . . . . . . . . . Legs . | . . . . . . . . . . . . . Wheels . | . . . . . . . . . . . . . Hover 348 | . . . . . . 5 . . . 3 243 97 Flight 1026 | . . . . . . . 193 472 270 91 . . Fastest Speed 23 | 50 50 50 50 50 50 44 29 23 23 23 55 50 Average Speed 39 | 50 50 50 50 50 50 50 33 23 23 25 55 58 Slowest Speed 61 | 50 50 50 50 50 50 60 50 29 23 56 61 61 Overloaded Moves . | . . . . . . . . . . . . . Propulsion Burnouts . | . . . . . . . . . . . . . Robots Hopped 6 | . . . . . . . 3 . 1 2 . . Cave-ins Triggered . | . . . . . . . . . . . . . Exploration Rate (%) 34 | 3 25 44 34 26 4 68 6 48 56 77 47 4 Regions Visited 12 Branch Regions 5 Pre-discovered Areas 31 | . . . . 1 . . . . . 30 . . Known Exits Taken 4 | . 1 . . 1 1 . 1 . . . . . Unknown Exits Taken 7 | 1 . 1 1 . . . . 1 1 1 1 . Scrap Searched 5 | . . . . . . . . 1 2 . 2 . Spaces Dug 49 | . . . 13 7 . . 11 18 . . . . Terrain Destroyed 93 | . . 7 34 7 . . 11 34 . . . . Melee . | . . . . . . . . . . . . . Projectile . | . . . . . . . . . . . . . AOE 93 | . . 7 34 7 . . 11 34 . . . . Terrain Rammed . | . . . . . . . . . . . . . Walls Destroyed . | . . . . . . . . . . . . . Machines Disabled . | . . . . . . . . . . . . . Actions | -11 -10 -10 -9 -8 -7 -7 -6 -6 -6 -6 -5 -5 --------- Run | Jun Mat Min Mat Mat Fac DSF Fac Low Low Dat Pro Fac Total 2363 | 28 85 111 226 206 118 77 251 506 272 101 244 138 Wait 22 | . . . . . . . . 22 . . . . Move 2245 | 27 82 109 209 200 116 65 240 471 267 90 242 127 Hop 5 | . . . . . . . 3 . 1 1 . . Pick Up 14 | 1 3 . . . 1 2 . . 2 4 . 1 Fast Attach 20 | . . . 2 . 1 5 4 3 2 . 1 2 Attach 15 | . . 1 2 1 . . 1 3 . 3 1 3 Detach 4 | . . . 2 . . . 1 1 . . . . Swap . | . . . . . . . . . . . . . Drop 6 | . . . 2 . . . . . . 2 . 2 Fire 14 | . . 1 4 1 . . 2 6 . . . . Melee 1 | . . . . . . . . . . 1 . . Ram 13 | . . . 5 4 . 1 . . . . . 3 Kick . | . . . . . . . . . . . . . Crush . | . . . . . . . . . . . . . Escape Stasis 4 | . . . . . . 4 . . . . . . Rewire . | . . . . . . . . . . . . . Trap . | . . . . . . . . . . . . . Miscellaneous . | . . . . . . . . . . . . . Route ------- -11/Junkyard -10/Materials (discovered 2 exits: *Min x2) -10/Mines -9/Materials -8/Materials (discovered 3 exits: *Fac x3) -7/Factory -7/DSF -6/Factory (discovered 2 exits: *Low x2) -6/Lower Caves -6/Lower Caves (discovered 2 exits: [*Fac] / *Dat) -6/Data Miner -5/Proximity Caves -5/Factory History --------- Turn | Location | Event 7 | -11/Junkyard | Discovered new exit (range 16) 16 | -11/Junkyard | Entered Materials 39 | -10/Materials | Identified exit to Mines 61 | -10/Materials | Entered Mines 113 | -10/Mines | Discovered new exit (range 12) 119 | -10/Mines | Entered Materials 119 | -9/Materials | Evolved 2 slots: Propulsion x1, Utility x1 204 | -9/Materials | Core integrity fell below 50% 224 | -9/Materials | Core integrity fell below 20% 238 | -9/Materials | Discovered new exit (range 14) 244 | -9/Materials | Entered another Materials area 244 | -8/Materials | Evolved 2 slots: Propulsion x1, Utility x1 309 | -8/Materials | Build established: Mutant 319 | -8/Materials | Identified exit to Factory 348 | -8/Materials | Core integrity fell below 50% 352 | -8/Materials | Entered Factory 352 | -7/Factory | Evolved 2 slots: Propulsion x1, Utility x1 413 | -7/Factory | Identified exit to DSF 413 | -7/Factory | Entered DSF 436 | -7/DSF | Additional patrols routed to DSF 451 | -7/DSF | Discovered new exit (range 14) 461 | -7/DSF | Entered Factory 461 | -6/Factory | Evolved 2 slots: Propulsion x1, Utility x1 479 | -6/Factory | Identified exit to Lower Caves 489 | -6/Factory | Lost 5 parts (4n1u) 556 | -6/Factory | Entered Lower Caves 557 | -6/Lower Caves | Encountered a Warlord checkpoint 587 | -6/Lower Caves | Learned Factory non-interactive machine intel 596 | -6/Lower Caves | Learned Factory terminal intel 687 | -6/Lower Caves | Attracted the attention of an 0b10 base 705 | -6/Lower Caves | Discovered new exit (range 9) 709 | -6/Lower Caves | Entered another Lower Caves area 710 | -6/Lower Caves | Encountered a Warlord checkpoint 711 | -6/Lower Caves | Learned Factory trap positions 711 | -6/Lower Caves | Discovered new exit (range 8) 743 | -6/Lower Caves | Spotted B-75 Beast 773 | -6/Lower Caves | Discovered new exit (range 14) 776 | -6/Lower Caves | Entered Data Miner 776 | -6/Data Miner | Discovered new exit (range 7) 781 | -6/Data Miner | Build established: Scavenger-Sprinter 781 | -6/Data Miner | Met Data Miner 785 | -6/Data Miner | Learned location of Section 7 (-2) 785 | -6/Data Miner | Acquired the access code to Warlord's prototype stash 788 | -6/Data Miner | Received God Mode back door access code from Data Miner 792 | -6/Data Miner | Destroyed Data Miner 794 | -6/Data Miner | Interfaced with the Data Conduit 794 | -6/Data Miner | Found Prototype Hackware 795 | -6/Data Miner | Found Prototype Hackware 797 | -6/Data Miner | Found Prototype Hackware 798 | -6/Data Miner | Found Prototype Hackware 810 | -6/Data Miner | Entered Proximity Caves 837 | -5/Proximity Caves | Lost 4 parts (4n) 883 | -5/Proximity Caves | Learned Factory terminal intel 896 | -5/Proximity Caves | Learned 4 Factory zone layouts 940 | -5/Proximity Caves | Discovered new exit (range 15) 947 | -5/Proximity Caves | Entered Factory 947 | -5/Factory | Evolved 2 slots: Propulsion x1, Utility x1 949 | -5/Factory | Loaded intel: 87 trap records 950 | -5/Factory | Loaded intel: 280 machine locations 951 | -5/Factory | Loaded intel: 226 non-interactive machine locations 952 | -5/Factory | Loaded intel: 28 terminal locations 1010 | -5/Factory | Identified Deep Network Scanner 1011 | -5/Factory | Identified System Mapper 1033 | -5/Factory | Self-destructed Last Messages --------------- Loading Factory machine intel (x280)... Loading Factory non-interactive machine intel (x226)... Loading Factory terminal intel (x28)... 00955_ Acquired Imp. Signal Interpreter. 00959_ Acquired Adv. Signal Interpreter. 00986_ K-01 Serf collects debris. 00995_ ALERT: All DSF locations entering lockdown mode. 01005_ VTOL Module destroyed. 01010_ Gravmag System destroyed. 01010_ Identified Deep Network Scanner. 01011_ Identified System Mapper. 01012_ Dropped Sml. Storage Unit. 01013_ Dropped Nuclear Core. 01014_ Adv. Sensor Array destroyed. 01020_ Acquired Nuclear Pulse Thruster. 01021_ Nuclear Pulse Thruster destroyed. 01025_ Slammed into S-27 Virus. 01027_ System Mapper destroyed. 01027_ Slammed into S-27 Virus. 01028_ Deep Network Scanner destroyed. Map ----- +----------------------------------------------------+ | ???????????????????# # """""""???????????????? | | ???????????????????# # """""""???????????????? | | ???????????????????# # """"""" ??????????????? | | ???????????????????# # """"""" #??????????? | | ???????????????????# + =#??????????? | | ???????????????????# # """ #??????????? | | ???????????????????# # """ ! #??????????? | | ???????????????????# # """ #??????????? | | ???????????????????# # #??????????? | | ???????????????????# # ] #??????????? | | ???????????????????# ############?????"""????? | | ???????????????????# #????????????????"R?????? | | ???????????????????# #?##############?"""????? | | ???????????????????# #?# ! #????????? | | ?????????????????### !### ""#????????? | | ?????????????????# * # """" ! ""#????????? | | ????????????###### k # """" G#????????? | | ?????????? # """" ""#????????? | | ????????? # """" ""#????????? | | ???????"" + #?""""?""" | | ??????"""? """ """ """ss# """" """" #?""""?""" | | ?T????""?? """ """ """ s# """" """" #?""""?""" | | ??????""F"????""" """ """ # """" """" #?""""?""" | | ??????"""" # """" """" #?""""?""" | | ???????"""????""" """ """ # ?#?""""?""" | | ??????????????""" """ """@ ############??????????? | | ??????????????"""?""" """ #?????????????????????? | | ????????????????? #?????????????????????? | | ??????"""?"""?""" """ """ #?????????????????????? | | ??????"""?"""?"""?""" """ #?????????????????????? | | ??????"""?"""?"""?""" """ #?????????????????????? | | ?????????????????? #?????????????????????? | | ??????????????????? ?? ?????????????????????? | | ??????????????????????######?????????????????????? | | ?????????????????????????????????????????????????? | | ?????????????????????????????????????????????????? | | ?????????????????????????????????????????????????? | | ?????????????????????????????????????????????????? | | ?????????????????????????????????????????????????? | | ?????????????????????????????????????????????????? | | ?????????????????????????????????????????????????? | | ?????????????????????????????????????????????????? | | ?????????????????????????????"""""""?????????????? | | ?????????????????????????????"""""""?????????????? | | ??????????????""?????????????"""""""???????"""?""" | | ??????????????""?????????????"""""""???????"""?""" | | """???????????"""??????????????????????????"""?""" | | """???????????"""????????????"""""""?????????????? | | """???????????"""????????????"""""""?????????????? | | ?????????????????????????????"""""""????????????"" | +----------------------------------------------------+ Best States ------------- Heat Dissipation 40 Energy Generation 18 Energy Capacity 240 Matter Stores 300 Matter Capacity 300 Sight Range 16 Robot Scan Range 16 Terrain Scan Density 10 Evasion (%) 65 Offensive Hacking 45 Defensive Hacking 10 Item Schematics ----------------- Biometal Medium Treads | -6/Data Miner | Free Adv. Heavy Treads | -6/Data Miner | Free Imp. Phase Shifter | -6/Data Miner | Free Imp. Force Field | -6/Data Miner | Free Phase Gun | -6/Data Miner | Free Adv. Coolant Injector | -6/Data Miner | Free Adv. Medium Treads | -6/Data Miner | Free Neutron Cannon | -6/Data Miner | Free Exp. Heat Sink | -6/Data Miner | Free Lgt. Regenerative Plating | -6/Data Miner | Free Combat Drone Bay | -6/Data Miner | Free Enh. Flexi-carbon Leg | -6/Data Miner | Free Robot Schematics ------------------ O-32 Director | -6/Data Miner | Free R-10 Processor | -6/Data Miner | Free Y-54 Guardian | -6/Data Miner | Free G-50 Soldier | -6/Data Miner | Free Fabricated ------------ Nothing Alien Tech Used ----------------- None Achievements -------------- None Challenges ------------ None Game ------ Seed ThrowingCloakSystem Manual? 0 Play Time 00:15:09 Cumulative 266.3 hours Start 2023.06.01 @ 22:39:28 End 2023.06.01 @ 22:53:41 Sessions 1 Manual Loads 0 Difficulty Rogue Special Mode None Game No. 783 Rogue 783 Adventurer 0 Explorer 0 Win Type - Total 15 Types 8/0/5/2/0/0/0/0/0 Lore% 88 Gallery% 86 Achievement% 77 Wizard Run 0 Options --------- ASCII 0 Keyboard 0 Movement Numpad Keybinds 0 Fullscreen 1 Font 16/SmallcapsGlow Map View 75x55 Tactical HUD 1 Map Filters NONE Filters NONE Steam 1 RUN: 92cedd7e-8d73-48cb-86b8-0df9ff2e9270